bitfinex/quotes_ETHUSD_20260130
["timestamp","ask_amount","ask_price","bid_price","bid_amount"]
[1769795792289,1.54468357,2721.2,2720.0,1.74338752]
[1769795792583,1.54568357,2721.2,2720.0,1.74338752]
[1769795792792,16.22058713,2721.2,2720.1,0.91908385]
[1769795793359,16.22058713,2721.2,2719.5,1.44162654]
[1769795793559,16.22058713,2721.2,2719.8,0.91917798]
[1769795793797,13.75618452,2721.0,2719.8,0.91917798]
[1769795793958,13.75618452,2721.0,2720.0,0.91911337]
[1769795794892,13.75618452,2720.8,2719.7,0.91921903]
[1769795796066,13.75618452,2720.7,2719.6,0.91923106]
[1769795796260,0.77,2720.6,2719.6,0.91923106]
[1769795796461,0.77,2720.6,2719.5,3.67711257]
[1769795796462,14.14567222,2720.6,2719.5,0.91926477]
[1769795796674,14.14567222,2720.6,2719.6,0.91925207]
[1769795796900,14.14567222,2720.6,2719.2,13.18007422]
[1769795797785,15.06459718,2720.6,2719.1,3.67766147]
[1769795799203,15.06459718,2720.6,2719.0,0.91942186]
[1769795799388,13.4052716,2720.4,2719.0,3.07944846]
[1769795799692,13.4052716,2720.4,2719.0,0.91942186]
[1769795800095,13.4052716,2720.4,2719.0,14.24289102]
[1769795801399,14.32427789,2720.4,2719.0,14.24289102]
[1769795803366,13.4052716,2720.4,2719.0,14.24289102]
[1769795803565,15.8689385,2720.4,2719.1,1.79205785]
[1769795803766,15.8689385,2720.4,2719.0,0.91942186]
[1769795804798,15.8689385,2720.4,2719.2,0.002]
[1769795806710,13.4052716,2720.3,2719.2,0.002]
[1769795807003,13.4052716,2720.3,2719.0,0.0012]
[1769795807598,13.4052716,2720.1,2719.0,0.0012]
[1769795807808,13.4052716,2719.9,2719.0,0.0012]
[1769795809584,14.32445683,2719.8,2719.0,0.0012]
[1769795809782,14.32445683,2719.8,2718.8,0.002]
[1769795810381,3.1215718,2720.0,2718.8,0.002]
[1769795810707,16.5268434,2720.0,2718.8,0.002]
[1769795810907,0.63419928,2719.9,2718.8,0.002]
[1769795811213,16.5268434,2720.0,2718.8,13.32546916]
[1769795811378,16.5268434,2720.0,2718.8,0.002]
[1769795812978,16.5268434,2720.0,2718.5,0.002]
[1769795813309,16.5268434,2720.0,2718.5,0.92161908]
[1769795813819,16.5268434,2720.0,2718.5,0.002]
[1769795814001,13.4052716,2719.8,2718.5,0.002]
[1769795815706,13.4052716,2719.8,2718.0,3.67910505]
[1769795815914,13.4052716,2719.6,2718.0,3.67750505]
[1769795817322,13.4052716,2719.6,2717.9,0.002]
[1769795817506,13.4052716,2719.4,2717.9,0.92180425]
[1769795817821,13.4052716,2719.0,2718.2,0.002]
[1769795818013,13.4052716,2719.0,2717.9,0.0012]
[1769795818322,13.4052716,2719.0,2718.0,0.0004]
[1769795820430,0.91948949,2718.9,2718.0,0.0004]
[1769795820620,4.4484533,2719.3,2718.0,13.32386916]
[1769795820621,0.771,2719.3,2718.0,13.32386916]
[1769795821010,1.69035853,2719.3,2718.0,13.32386916]
[1769795821513,0.771,2719.3,2718.0,13.32386916]
[1769795822398,0.771,2719.3,2718.2,13.32346916]
[1769795822600,0.771,2719.3,2718.1,0.91976012]
[1769795822601,0.001,2719.8,2718.4,13.32346916]
[1769795824352,0.001,2719.8,2718.6,13.32346916]
[1769795825935,0.771,2719.9,2718.5,0.91962479]
[1769795825936,14.32418546,2720.7,2718.7,14.09446916]
[1769795826245,0.771,2720.6,2718.7,14.09446916]
[1769795826437,0.771,2720.6,2718.9,13.86516039]
[1769795826438,3.19943138,2720.6,2718.9,13.86516039]
[1769795826834,12.67067415,2720.5,2718.9,13.86516039]
[1769795828447,12.67067415,2720.5,2718.9,0.91948949]
[1769795828448,12.67067415,2720.3,2718.9,0.91948949]
[1769795829724,12.67067415,2720.3,2719.1,0.002]
[1769795830052,14.02963982,2720.2,2718.9,0.91948949]
[1769795830230,14.02963982,2720.2,2718.9,0.92148949]
[1769795830834,13.589758,2720.1,2718.9,0.92148949]
[1769795831270,12.67067415,2720.1,2718.9,0.92148949]
[1769795831551,8.62803635,2720.2,2718.9,13.86716039]
[1769795831760,13.53357779,2720.1,2718.9,16.13041272]
[1769795832552,13.53357779,2720.1,2718.9,0.92148949]
[1769795832926,13.53357779,2720.1,2718.4,0.91965862]
[1769795832927,12.67067415,2719.9,2718.4,0.91965862]
[1769795833145,12.67067415,2719.7,2718.4,0.91965862]
[1769795833733,12.67067415,2719.6,2718.1,0.91974149]
[1769795833926,14.01484157,2719.6,2718.3,0.91966503]
[1769795834959,12.67067415,2719.4,2718.0,3.67953357]
[1769795835320,12.67067415,2719.4,2718.3,0.9196775]
[1769795835965,12.67067415,2719.4,2718.1,3.67900539]
[1769795836174,12.67067415,2719.2,2718.0,0.0004]
[1769795836331,12.67067415,2719.0,2718.0,0.0004]
[1769795837030,12.67067415,2718.8,2718.0,0.0004]
[1769795837366,12.67067415,2718.6,2718.0,0.0004]
[1769795839062,12.67067415,2718.6,2717.4,3.67990646]
[1769795840276,13.59027759,2718.6,2717.4,3.67990646]
[1769795840757,6.35,2718.6,2717.5,12.9476709]
[1769795841255,0.771,2719.1,2717.5,12.9476709]
[1769795841256,14.36109889,2719.1,2717.5,12.9476709]
[1769795841429,12.67067415,2719.0,2717.7,12.9456709]
[1769795841931,12.67067415,2719.0,2717.7,12.9476709]
[1769795842662,13.59016364,2718.9,2717.8,0.91986165]
[1769795843083,12.67067415,2718.9,2717.8,0.91986165]
[1769795844379,3.20605217,2719.1,2717.8,0.91986165]
[1769795844578,0.85678983,2719.0,2717.9,0.46013083]
[1769795845383,0.771,2719.1,2718.0,13.86546486]
[1769795848787,13.44167415,2719.1,2718.0,0.91979396]
[1769795849385,0.771,2719.1,2718.1,12.9456709]
[1769795849562,0.771,2719.1,2718.2,0.91972628]
[1769795851709,13.44167415,2719.1,2718.2,0.91972628]
[1769795851885,1.34416742,2719.0,2718.2,0.91972628]
[1769795852090,13.44167415,2719.1,2718.2,0.91972628]
[1769795853691,0.771,2719.1,2718.2,12.9456709]
[1769795854574,0.001,2718.9,2718.2,12.9456709]
[1769795855785,0.001,2718.9,2718.3,0.91969245]
[1769795856014,0.771,2719.7,2718.5,12.9456709]
[1769795858004,14.26375559,2719.7,2718.6,0.91959096]
[1769795859411,13.49375559,2720.3,2718.6,14.23443489]
[1769795860010,14.41277416,2720.3,2718.6,14.23443489]
[1769795860234,13.49275559,2720.1,2718.7,2.56227988]
[1769795860586,13.49275559,2720.1,2718.7,15.87712381]
[1769795862695,13.49275559,2720.1,2718.8,0.91952331]
[1769795862882,13.49275559,2720.1,2718.8,14.23436724]
[1769795866123,13.49275559,2720.1,2718.8,14.23636724]
[1769795866325,21.39965889,2720.0,2718.8,3.33700668]
[1769795866484,14.26475559,2719.9,2718.8,0.92152331]
[1769795866685,13.49275559,2719.7,2718.8,0.002]
[1769795869223,0.772,2719.9,2718.8,13.31684393]
[1769795869407,0.772,2719.9,2719.0,13.31484393]
[1769795870229,0.772,2719.9,2718.9,1.40878439]
[1769795871503,0.772,2719.9,2719.0,14.23429961]
[1769795872104,0.772,2719.9,2719.0,0.91945568]
[1769795875241,0.772,2719.9,2719.0,14.23429961]
[1769795875405,0.772,2719.9,2719.1,15.2469346]
[1769795876722,0.772,2719.9,2719.2,0.91938805]
[1769795878642,0.001,2719.7,2719.2,0.91938805]
[1769795880460,13.49375559,2719.7,2718.8,40.002]
[1769795880656,13.49275559,2719.5,2718.8,40.002]
[1769795880844,13.49275559,2719.5,2718.9,0.91948949]
[1769795881159,13.49275559,2719.5,2718.8,40.92150018]
[1769795881454,14.41204703,2719.5,2718.0,0.9197662]
[1769795881663,14.41204703,2719.5,2718.1,0.91975797]
[1769795881664,13.49275559,2719.3,2718.1,0.91975797]
[1769795882152,13.49275559,2719.3,2718.4,0.91964105]
[1769795882352,13.49275559,2719.3,2718.3,0.91967176]
[1769795882554,13.49275559,2719.3,2717.7,13.31684393]
[1769795882738,13.49275559,2719.1,2717.8,3.67943376]
[1769795882937,13.49275559,2718.9,2717.8,3.67943376]
[1769795883153,2.21221436,2719.0,2717.8,3.67943376]
[1769795883154,15.70496995,2719.0,2717.8,16.99427769]
[1769795885054,14.41224508,2718.9,2717.8,0.91986165]
[1769795885353,14.41224508,2718.9,2717.7,0.002]
[1769795885573,14.41224508,2718.9,2717.7,0.92189506]
[1769795885782,14.12781865,2718.8,2717.8,0.91985513]
[1769795886578,0.63506306,2718.8,2717.8,14.50486909]
[1769795886781,2.21221436,2719.0,2717.8,14.50486909]
[1769795887474,3.1316719,2719.0,2717.8,14.50486909]
[1769795887879,16.1022333,2719.0,2717.8,0.91985513]
[1769795888057,16.1022333,2719.0,2717.8,0.91985253]
[1769795888260,12.9705614,2718.8,2717.8,0.91985253]
[1769795888776,12.9705614,2718.8,2717.7,0.002]
[1769795889385,13.89011854,2718.7,2717.5,0.002]
[1769795889752,12.9705614,2718.2,2716.9,0.002]
[1769795890055,12.9705614,2718.0,2716.9,0.002]
[1769795890259,0.771,2718.1,2716.4,0.002]
[1769795890260,12.9705614,2717.8,2716.4,0.002]
[1769795890779,12.9705614,2717.8,2716.4,0.92232613]
[1769795891376,13.89045689,2717.7,2716.4,5.99e-06]
[1769795893468,12.9705614,2717.3,2716.4,5.99e-06]
[1769795893685,12.9705614,2717.1,2716.4,5.99e-06]
[1769795893863,14.34471754,2717.0,2716.4,5.99e-06]
[1769795894988,14.34471754,2717.0,2716.2,0.002]
[1769795895574,0.92016636,2716.9,2716.2,0.002]
[1769795897598,13.89072776,2716.9,2715.9,0.00101197]
[1769795897806,14.86511424,2716.8,2715.9,0.00101197]
[1769795897968,14.86511424,2716.8,2715.5,0.002]
[1769795898489,14.86511424,2716.8,2715.5,0.92264022]
[1769795899695,13.8907955,2716.7,2715.5,0.002]
[1769795900071,0.771,2716.6,2715.5,0.002]
[1769795900300,13.7415614,2716.6,2715.5,0.002]
[1769795900513,14.21362187,2716.5,2715.5,0.002]
[1769795900675,12.9705614,2716.4,2715.3,3.99e-06]
[1769795901808,12.9705614,2716.2,2715.3,3.99e-06]
[1769795902004,1.37415614,2716.1,2715.3,3.99e-06]
[1769795902209,0.771,2716.0,2715.3,3.99e-06]
[1769795903614,0.771,2716.0,2715.8,0.002]
[1769795903820,0.771,2716.0,2715.3,3.99e-06]
[1769795904021,0.92050517,2715.9,2715.5,0.001]
[1769795904320,0.53734305,2715.8,2715.5,0.001]
[1769795906896,1.45790564,2715.8,2715.5,0.001]
[1769795907222,0.53734305,2715.8,2715.5,5.99e-06]
[1769795907427,0.772,2715.7,2715.5,5.99e-06]
[1769795907585,0.772,2715.7,2715.3,3.99e-06]
[1769795909421,0.772,2715.7,2715.2,0.002]
[1769795910815,1.69257867,2715.7,2715.2,0.002]
[1769795911143,2.86506091,2715.7,2715.2,0.002]
[1769795911516,1.94448224,2715.7,2715.2,0.002]
[1769795911915,0.772,2715.7,2715.2,0.002]
[1769795912733,0.772,2715.7,2715.2,13.58701396]
[1769795913539,10.31596068,2717.0,2715.2,13.58701396]
[1769795913540,1.02270185,2716.5,2715.3,14.50572253]
[1769795913733,0.772,2716.4,2715.3,13.58501396]
[1769795913909,13.7425614,2716.4,2715.2,0.002]
[1769795914113,12.9705614,2716.2,2715.2,0.002]
[1769795915447,12.9705614,2716.2,2715.4,0.002]
[1769795915646,0.92043739,2716.1,2715.2,0.002]
[1769795915840,0.001,2716.0,2715.2,0.002]
[1769795917449,0.001,2716.0,2715.2,13.23837493]
[1769795917765,0.001,2716.0,2715.3,15.57317742]
[1769795917923,0.001,2716.0,2715.3,14.65248981]
[1769795918275,12.70403968,2716.0,2715.2,0.002]
[1769795919525,12.70403968,2716.0,2715.2,0.92273885]
[1769795919832,0.92147584,2716.0,2715.2,13.23837493]
[1769795920234,0.001,2716.0,2715.2,13.23837493]
[1769795921576,4.45342645,2716.4,2715.2,13.23837493]
[1769795921577,0.772,2716.4,2715.2,13.23837493]
[1769795921726,0.772,2716.4,2715.4,13.23637493]
[1769795922335,1.69233578,2716.4,2715.4,13.23637493]
[1769795922546,1.69233945,2716.4,2715.4,13.23637493]
[1769795923043,0.772,2716.4,2715.4,13.23637493]
[1769795923243,1.6923369,2716.4,2715.5,14.78448703]
[1769795927485,1.6923369,2716.4,2715.6,14.15698179]
[1769795927778,0.001,2716.2,2715.6,14.15698179]
[1769795927985,0.001,2716.2,2715.5,1.5481121]
[1769795928282,0.001,2716.2,2715.5,0.92063553]
[1769795928580,0.001,2716.2,2715.4,0.92264861]
[1769795928889,0.001,2716.2,2715.4,0.002]
[1769795929379,0.9214035,2716.2,2715.4,0.002]
[1769795929584,1.73060572,2716.1,2715.4,0.002]
[1769795929945,14.4336454,2716.1,2715.4,0.002]
[1769795930878,14.4336454,2716.1,2715.4,13.23837493]
[1769795930879,1.73060572,2716.1,2715.4,13.23837493]
[1769795931078,0.9214035,2716.2,2715.4,13.23837493]
[1769795931487,0.001,2716.2,2715.4,0.002]
[1769795932162,12.70403968,2716.2,2715.4,0.002]
[1769795934400,0.92043739,2716.1,2715.4,0.002]
[1769795937000,0.92043739,2716.1,2715.1,14.15914624]
[1769795937201,1.73062266,2716.0,2715.1,14.15914624]
[1769795939300,0.92050517,2715.9,2715.6,0.002]
[1769795940094,3.42411767,2716.0,2715.6,0.002]
[1769795940296,1.69349501,2716.0,2715.6,0.002]
[1769795940497,8.04349501,2716.0,2715.6,0.002]
[1769795940703,8.04349501,2716.0,2715.4,0.002]
[1769795941906,12.70303968,2715.9,2715.1,0.002]
[1769795942077,8.04349501,2716.0,2714.5,16.92226564]
[1769795942078,12.70303968,2715.7,2714.5,14.15933699]
[1769795942281,0.1921648,2715.1,2714.5,0.002]
[1769795942511,0.1921648,2715.1,2714.3,0.002]
[1769795942512,13.47503968,2715.0,2714.3,0.002]
[1769795942687,12.70303968,2714.8,2714.1,0.00100199]
[1769795943208,12.70303968,2714.8,2713.5,14.15769284]
[1769795943509,14.89425572,2714.7,2713.5,15.94201441]
[1769795944014,1.27030397,2714.7,2713.5,15.94201441]
[1769795944221,0.772,2715.0,2713.5,15.94201441]
[1769795944377,3.68299237,2716.0,2713.6,13.63090551]
[1769795944378,0.772,2715.7,2713.6,13.63090551]
[1769795944579,0.001,2716.0,2713.8,13.23637493]
[1769795944804,0.92148243,2716.0,2713.8,13.63090551]
[1769795945082,1.38191585,2716.0,2714.0,13.23637493]
[1769795945277,1.38191585,2716.0,2714.2,13.23637493]
[1769795945501,1.38191585,2716.0,2714.4,13.23637493]
[1769795946110,12.93660998,2715.8,2714.4,13.23637493]
[1769795946279,12.70303968,2715.8,2714.4,13.23637493]
[1769795946611,14.18590244,2715.7,2714.2,0.92105789]
[1769795946780,14.18590244,2715.7,2714.2,0.92107966]
[1769795947408,13.82596533,2715.6,2714.2,0.92107531]
[1769795947706,0.772,2715.5,2714.2,0.92107531]
[1769795948282,0.772,2715.5,2714.2,14.87448867]
[1769795948484,0.772,2715.5,2714.3,15.809308]
[1769795949486,0.92067467,2715.4,2714.3,16.73033296]
[1769795949912,0.772,2715.5,2714.3,16.73033296]
[1769795950302,0.92147455,2716.0,2714.3,16.73033296]
[1769795952433,0.001,2715.6,2714.3,16.73033296]
[1769795952615,0.001,2715.6,2714.5,13.95341336]
[1769795952791,0.001,2716.0,2714.6,13.95341336]
[1769795953502,0.001,2716.0,2714.8,13.95341336]
[1769795955510,0.001,2716.0,2715.0,13.95341336]
[1769795955732,0.001,2716.0,2715.2,13.95341336]
[1769795957621,0.001,2716.0,2715.3,0.92070857]
[1769795957833,0.001,2716.0,2715.3,14.87412193]
[1769795958631,3.78297664,2717.0,2715.6,13.95341336]
[1769795959627,3.78297664,2717.0,2715.7,0.92057296]
[1769795959829,0.54751091,2716.9,2715.8,1.85562782]
[1769795960727,13.45286938,2716.9,2715.8,1.85562782]
[1769795961652,0.54751091,2716.9,2715.8,1.85562782]
[1769795961818,1.46770572,2716.9,2715.9,14.87391853]
[1769795962263,1.46770572,2716.9,2715.2,13.95341336]
[1769795962264,12.90535847,2716.8,2715.2,13.95341336]
[1769795962435,12.90535847,2716.6,2715.3,0.92067856]
[1769795962843,12.90535847,2716.4,2715.1,0.92075856]
[1769795963152,12.90535847,2716.4,2715.1,0.92075259]
[1769795963548,12.90535847,2716.4,2715.2,0.92073543]
[1769795963851,13.82572809,2716.3,2714.8,14.8742915]
[1769795964044,12.90535847,2716.1,2714.9,1.85579182]
[1769795964226,12.90535847,2716.1,2714.8,0.92087814]
[1769795964626,12.90535847,2716.1,2713.8,3.68678456]
[1769795964627,12.90535847,2715.7,2714.2,0.92106205]
[1769795965156,12.90535847,2715.7,2715.1,0.002]
[1769795965326,12.90535847,2715.7,2714.3,0.92003655]
[1769795965839,13.82596533,2715.6,2714.1,0.002]
[1769795966024,0.77623146,2715.5,2714.1,1.85811613]
[1769795966524,13.68158993,2715.5,2714.1,1.85811613]
[1769795968352,13.82603314,2715.4,2714.1,1.85811613]
[1769795968656,13.67735847,2715.3,2714.1,2.77920711]
[1769795969150,13.67735847,2715.3,2714.1,0.92309098]
[1769795970730,13.82610095,2715.2,2714.1,0.002]
[1769795972753,0.92081031,2715.0,2714.1,0.002]
[1769795973055,6.35,2714.9,2714.1,0.002]
[1769795975733,6.35,2714.9,2714.1,13.95541336]
[1769795975883,6.35,2714.9,2714.3,13.95341336]
[1769795976365,7.27084924,2714.9,2714.1,0.002]
[1769795978551,20.81708728,2714.9,2714.1,0.002]
[1769795978744,13.77980834,2714.8,2714.1,0.002]
[1769795979046,0.54751091,2714.7,2714.1,0.002]
[1769795979248,0.772,2714.6,2714.1,0.002]
[1769795980064,0.92097992,2714.5,2714.1,0.002]
[1769795984497,14.46721796,2714.5,2713.8,0.002]
[1769795984725,1.43730642,2714.4,2713.8,0.002]
[1769795984868,14.98354446,2714.4,2713.8,0.002]
[1769795986529,14.98354446,2714.4,2713.5,0.002]
[1769795986727,0.92104778,2714.3,2713.5,0.002]
[1769795988129,0.92104778,2714.3,2713.2,13.813699]
[1769795988424,1.75072066,2714.2,2713.2,13.813699]
[1769795988592,13.54623804,2714.1,2712.5,0.002]
[1769795988798,0.1924503,2713.2,2712.5,0.002]
[1769795989023,0.772,2713.1,2712.5,0.002]
[1769795990113,0.772,2713.1,2712.5,12.89429141]
[1769795991241,0.96058936,2713.1,2712.7,0.002]
[1769795991737,1.88204514,2713.1,2712.7,0.002]
[1769795992332,0.96058936,2713.1,2712.7,0.002]
[1769795992634,0.772,2713.1,2712.7,12.89429141]
[1769795992836,0.1924503,2713.2,2712.7,12.89429141]
[1769795993336,0.1924503,2713.2,2712.7,13.81586175]
[1769795994336,0.772,2713.3,2712.7,13.81586175]
[1769795994639,0.772,2714.0,2712.7,13.81586175]
[1769795994807,0.772,2714.0,2712.9,12.89229141]
[1769795995014,1.43318937,2714.3,2712.9,12.89229141]
[1769795995341,0.92114959,2714.0,2712.8,1.75023525]
[1769795995507,0.92114959,2714.0,2712.8,15.56407869]
[1769795995707,0.92113991,2714.1,2713.0,12.89229141]
[1769795995936,1.53970642,2714.4,2713.0,12.89229141]
[1769795995937,0.92109868,2714.2,2713.0,12.89229141]
[1769795996642,0.1024,2714.4,2713.0,12.89229141]
[1769795996944,13.64863804,2714.4,2713.0,12.89229141]
[1769795998035,14.46728582,2714.3,2713.0,13.81376574]
[1769795998228,1.8253877,2714.2,2713.0,15.3508031]
[1769795999340,0.92104778,2714.3,2713.0,15.3508031]
[1769795999951,7.27104778,2714.3,2713.0,15.3508031]
[1769796000454,20.81728582,2714.3,2713.0,15.3508031]
[1769796000636,13.54623804,2714.2,2713.0,14.42932877]
[1769796000957,13.54623804,2714.2,2713.0,13.81377567]
[1769796001124,13.54623804,2714.2,2713.0,13.81377467]
[1769796001816,1.02351565,2714.1,2713.0,12.89229141]
[1769796002015,1.02351565,2714.1,2712.7,0.002]
[1769796002016,13.64863804,2713.9,2712.7,0.002]
[1769796002215,13.54623804,2713.7,2712.7,0.002]
[1769796002525,9.14522083,2713.8,2712.7,12.89429141]
[1769796002730,0.001,2714.0,2713.1,12.89229141]
[1769796002936,0.92192193,2714.7,2713.2,12.89229141]
[1769796003138,0.19241976,2714.5,2713.2,12.89229141]
[1769796003456,14.46815396,2714.7,2713.2,12.89229141]
[1769796003616,14.46815396,2714.7,2713.0,0.9214779]
[1769796003817,13.54623804,2714.5,2713.0,15.56374189]
[1769796004044,14.46725189,2714.4,2713.0,15.56374189]
[1769796004587,0.92101385,2714.4,2713.0,15.56374189]
[1769796005052,0.92099987,2714.5,2713.0,15.56374189]
[1769796005475,3.78575856,2715.0,2713.0,15.56374189]
[1769796005476,13.54623804,2715.8,2713.1,12.89229141]
[1769796005616,13.54623804,2715.5,2713.3,12.89229141]
[1769796005836,13.54623804,2715.2,2713.3,12.89229141]
[1769796006033,13.54623804,2715.0,2713.4,13.81364469]
[1769796006265,0.92077639,2715.1,2713.3,0.92138068]
[1769796006266,13.77980834,2714.8,2713.3,0.92138068]
[1769796006475,13.50974468,2714.6,2713.3,0.92138639]
[1769796006642,13.27617438,2714.6,2713.3,14.81180904]
[1769796006845,13.27617438,2714.6,2713.2,3.68566832]
[1769796006846,13.37857438,2714.5,2713.1,0.92143373]
[1769796007275,13.37857438,2714.5,2713.2,0.9214186]
[1769796007638,13.27617438,2714.1,2712.7,3.68826299]
[1769796007838,13.27617438,2713.8,2712.7,0.002]
[1769796008044,0.92125142,2713.7,2712.7,0.002]
[1769796008644,14.1974258,2713.7,2712.7,0.002]
[1769796008861,14.99490556,2713.6,2712.7,0.002]
[1769796010266,3.68500571,2713.8,2712.7,0.002]
[1769796010267,0.772,2713.8,2712.7,0.002]
[1769796010456,14.04817438,2713.8,2712.7,0.002]
[1769796011145,14.04817438,2713.8,2712.5,0.002]
[1769796011988,0.772,2713.8,2712.5,13.89242265]
[1769796012171,0.772,2713.8,2712.6,15.27966492]
[1769796012474,0.92125142,2713.7,2712.6,1.38924227]
[1769796012780,0.92125142,2713.7,2712.5,0.92363507]
[1769796012976,0.92125142,2713.7,2712.6,0.92161791]
[1769796013296,0.772,2714.1,2712.7,13.89042265]
[1769796014141,13.27617438,2714.0,2712.6,0.92161791]
[1769796014341,0.92118353,2713.9,2712.5,0.002]
[1769796014549,1.78820921,2713.8,2712.5,13.89242265]
[1769796014848,1.78820921,2713.8,2712.8,0.002]
[1769796015198,0.772,2713.7,2712.8,0.002]
[1769796015548,0.772,2713.7,2712.8,13.89242265]
[1769796016050,0.92116942,2714.0,2712.8,13.89242265]
[1769796016252,0.001,2714.2,2713.0,13.89042265]
[1769796016454,0.001,2714.2,2713.1,14.81187781]
[1769796018178,13.27617438,2715.3,2713.2,13.89042265]
[1769796018480,3.02035992,2715.2,2713.6,13.89042265]
[1769796018678,1.69274248,2715.2,2713.6,13.89042265]
[1769796019382,14.96891686,2715.2,2713.5,0.92131932]
[1769796019600,13.27617438,2715.0,2713.5,0.92131932]
[1769796020879,0.92084422,2714.9,2713.4,17.57569996]
[1769796021700,0.92084422,2714.9,2713.5,13.89042265]
[1769796021867,0.46042211,2714.8,2713.6,1.75757]
[1769796022063,13.73659649,2714.8,2713.6,1.75757]
[1769796022265,13.73659649,2714.8,2713.4,0.92135328]
[1769796022812,0.92091207,2714.7,2713.4,0.92135328]
[1769796023186,0.92091207,2714.7,2713.4,14.81177593]
[1769796023899,1.38132295,2714.8,2713.4,14.81177593]
[1769796024232,14.65749733,2714.8,2713.5,1.99785059]
[1769796024918,14.65749733,2714.8,2713.6,0.92128537]
[1769796025482,1.38132295,2714.8,2713.7,13.89042265]
[1769796025736,0.1024,2715.1,2713.7,13.89042265]
[1769796025880,0.92078523,2715.1,2713.7,13.89042265]
[1769796026079,0.92067467,2715.4,2713.7,13.89042265]
[1769796026283,1.02306443,2715.5,2713.7,13.89042265]
[1769796026891,0.92066443,2715.5,2713.8,0.92121748]
[1769796027088,1.86512945,2715.4,2713.9,14.35103139]
[1769796027320,0.001,2714.8,2713.9,14.35103139]
[1769796028111,0.001,2714.8,2713.9,0.46060874]
[1769796028521,0.001,2714.8,2713.9,14.35103139]
[1769796029022,0.001,2714.8,2714.0,14.81157224]
[1769796029187,0.92066443,2715.5,2714.1,13.89042265]
[1769796029526,0.53751201,2715.4,2714.3,13.89042265]
[1769796030321,1.69262765,2715.6,2714.3,13.89042265]
[1769796031022,14.96880203,2715.6,2714.3,0.92104778]
[1769796032291,13.27617438,2715.4,2714.0,0.92112583]
[1769796032629,13.27617438,2715.4,2714.2,0.92107779]
[1769796032793,0.1024,2715.5,2714.2,14.81150044]
[1769796032985,13.37857438,2715.5,2714.2,0.92107779]
[1769796033221,0.92070857,2715.3,2713.9,14.81160618]
[1769796034020,1.5071202,2715.4,2713.9,14.81160618]
[1769796034224,17.73071019,2715.6,2713.9,14.81160618]
[1769796034225,0.772,2715.6,2713.9,15.58360618]
[1769796034390,1.69261975,2715.6,2713.9,14.81160618]
[1769796034711,1.69261975,2715.6,2714.1,13.89042265]
[1769796035214,0.772,2715.6,2714.3,13.89042265]
[1769796035421,0.772,2715.6,2714.5,13.89042265]
[1769796035948,1.69261856,2715.6,2714.5,13.89042265]
[1769796036127,1.69261856,2715.6,2714.4,1.48115044]
[1769796036422,1.69261856,2715.6,2714.2,0.92108171]
[1769796036610,0.772,2715.6,2714.2,13.72786361]
[1769796036936,15.10073928,2715.6,2714.2,13.72786361]
[1769796038220,1.69261349,2715.6,2714.2,13.72786361]
[1769796039320,3.68183581,2716.1,2714.2,13.72786361]
[1769796039519,0.73637209,2716.0,2714.4,13.1216714]
[1769796039925,0.001,2715.4,2714.4,13.1216714]
[1769796042331,0.001,2715.4,2714.5,14.04265132]
[1769796043402,0.001,2715.4,2714.5,0.92097992]
[1769796044237,0.001,2715.4,2714.5,1.38166988]
[1769796046340,0.001,2715.4,2714.3,0.002]
[1769796046341,13.86935811,2715.2,2714.3,0.002]
[1769796046533,13.86935811,2715.0,2714.3,0.002]
[1769796046908,13.86935811,2715.0,2714.0,0.002]
[1769796048536,0.92084422,2714.9,2714.0,0.002]
[1769796048739,1.84735792,2714.8,2714.0,0.002]
[1769796050639,13.86935811,2715.1,2714.0,0.002]
[1769796052145,13.86935811,2715.1,2714.2,0.002]
[1769796053039,0.92081031,2715.0,2714.2,0.002]
[1769796053338,1.69271958,2715.3,2713.7,0.92125142]
[1769796053546,0.53764191,2715.2,2713.8,13.58250922]
[1769796053850,14.40700002,2715.2,2713.8,0.46083782]
[1769796054343,0.53764191,2715.2,2713.8,13.58250922]
[1769796054545,1.69271655,2715.3,2713.8,13.58250922]
[1769796054848,0.001,2715.4,2713.8,13.58250922]
[1769796055343,0.001,2715.4,2714.0,13.1216714]
[1769796055517,0.001,2715.4,2714.0,13.8936714]
[1769796056221,0.73637209,2716.0,2714.1,13.1216714]
[1769796056441,0.92030185,2716.5,2714.3,13.1216714]
[1769796056840,0.92030185,2716.5,2714.3,13.52094905]
[1769796057343,3.68110072,2716.6,2714.5,13.1216714]
[1769796058115,13.86935811,2716.5,2714.5,13.1216714]
[1769796058450,13.86935811,2716.5,2714.6,13.1216714]
[1769796058745,15.62440399,2716.4,2714.7,14.51103854]
[1769796059041,1.75504588,2716.4,2714.7,14.51103854]
[1769796059231,0.92026798,2716.7,2714.9,13.1216714]
[1769796059550,0.773,2716.8,2714.9,13.1216714]
[1769796059846,0.001,2716.8,2715.1,13.1216714]
[1769796060025,0.001,2716.8,2715.3,13.1216714]
[1769796060221,0.91989549,2717.7,2715.5,13.1216714]
[1769796060622,14.7892536,2717.7,2715.5,13.1216714]
[1769796060814,14.10292841,2717.4,2715.4,1.38936714]
[1769796061011,14.10292841,2717.4,2715.1,13.1216714]
[1769796061215,14.10292841,2717.2,2715.2,14.04241388]
[1769796061634,14.10292841,2717.0,2715.2,14.04241388]
[1769796061833,14.10292841,2717.0,2715.2,0.92074248]
[1769796062133,0.772,2716.9,2715.2,0.92074248]
[1769796062340,13.86935811,2716.7,2715.1,0.92076107]
[1769796062524,13.86935811,2716.5,2715.1,0.92077256]
[1769796063246,0.92033573,2716.4,2715.0,3.68320595]
[1769796063449,1.38693581,2716.6,2715.1,13.1216714]
[1769796063635,13.86935811,2716.5,2714.8,0.92087463]
[1769796064145,13.97175811,2716.4,2714.8,0.92087463]
[1769796065134,0.92029001,2716.6,2714.8,14.04254603]
[1769796065329,3.68107192,2716.7,2714.8,14.04254603]
[1769796065542,13.86935811,2716.6,2714.8,0.92087463]
[1769796065743,15.62440111,2716.5,2714.9,0.46043935]
[1769796067423,13.59018509,2716.3,2714.9,0.46043935]
[1769796067623,13.59018509,2716.3,2714.9,0.92084114]
[1769796067824,0.92033573,2716.4,2714.9,14.81057697]
[1769796068729,14.51052082,2716.4,2714.9,14.81057697]
[1769796071833,14.51052082,2716.4,2714.6,3.68369304]
[1769796072024,13.59018509,2716.2,2714.6,1.75734289]
[1769796072239,13.59018509,2716.0,2714.5,0.92097708]
[1769796072441,13.59018509,2716.0,2714.5,0.92097584]